Department family,Entity,Date,Expense Type,Expense area,Supplier,Transaction number,AP Amount (�)
Department of Health,NHS Barnsley CCG,28/02/2014,C&M-PMS Cost of Drugs -Dispensing,LOCAL ENHANCED SERVICES,BARNSLEY GP PRACTICE,2737387,"(83,322.22)"
Department of Health,NHS Barnsley CCG,28/02/2014,Hcare Srv Rec Fdtn Trust-Contract Baseline,ACUTE COMMISSIONING,BARNSLEY HOSPITAL NHS FOUNDATION TRUST,2772910,"1,296,918.00"
Department of Health,NHS Barnsley CCG,28/02/2014,Clinical&Medical-Othe Public Sector,MENTAL HEALTH SERVICES - OTHER,BARNSLEY METROPOLITAN BOROUGH COUNCIL,2722760,"25,280.00"
Department of Health,NHS Barnsley CCG,28/02/2014,Cont Care-Learning Disab(<65),CHC ADULT FULLY FUNDED,BARNSLEY METROPOLITAN BOROUGH COUNCIL,2566927,"34,798.14"
Department of Health,NHS Barnsley CCG,28/02/2014,Cont Care-Learning Disab(<65),CHC ADULT FULLY FUNDED,BARNSLEY METROPOLITAN BOROUGH COUNCIL,2566918,"45,246.50"
Department of Health,NHS Barnsley CCG,28/02/2014,Cont Care- Palliative Care,CHC ADULT FULLY FUNDED,BARNSLEY METROPOLITAN BOROUGH COUNCIL,2469111,"50,761.82"
Department of Health,NHS Barnsley CCG,28/02/2014,Clinical&Medical-Othe Public Sector,PROGRAMME PROJECTS,BARNSLEY METROPOLITAN BOROUGH COUNCIL,2722672,"55,000.00"
Department of Health,NHS Barnsley CCG,28/02/2014,Clinical&Medical-Othe Public Sector,PROGRAMME PROJECTS,BARNSLEY METROPOLITAN BOROUGH COUNCIL,2722714,"89,587.00"
Department of Health,NHS Barnsley CCG,28/02/2014,Expenditure on Drugs Action Team,MENTAL HEALTH SERVICES - SPECIALIST SERVICES,BARNSLEY METROPOLITAN BOROUGH COUNCIL,2722760,"208,250.00"
Department of Health,NHS Barnsley CCG,28/02/2014,Clinical&Medical-Othe Public Sector,REABLEMENT,BARNSLEY METROPOLITAN BOROUGH COUNCIL,2722760,"208,670.00"
Department of Health,NHS Barnsley CCG,28/02/2014,Clinical&Medical-Othe Public Sector,COMMISSIONING - NON ACUTE,BARNSLEY METROPOLITAN BOROUGH COUNCIL,2722760,"356,933.00"
Department of Health,NHS Barnsley CCG,28/02/2014,Cont Care- Palliative Care,CHC ADULT FULLY FUNDED,BARNSLEY METROPOLITAN BOROUGH COUNCIL,2529430,"603,153.19"
Department of Health,NHS Barnsley CCG,28/02/2014,Clinical&Medical-Othe Public Sector,PROGRAMME PROJECTS,BARNSLEY METROPOLITAN BOROUGH COUNCIL,2722736,"4,432,443.00"
Department of Health,NHS Barnsley CCG,28/02/2014,Clinical&Medical-Commercial Sector,ACUTE COMMISSIONING,CARE UK CLINICAL SERVICES LTD,2567029,"31,458.97"
Department of Health,NHS Barnsley CCG,28/02/2014,Hcare Srv Rec Fdtn Trust-Contract Baseline,ACUTE COMMISSIONING,DONCASTER AND BASSETLAW HOSPITALS NHS FOUNDATION TRUST,2506977,"635,517.00"
Department of Health,NHS Barnsley CCG,28/02/2014,Hcare Srv Rec Fdtn Trust-Contract Baseline,ACUTE COMMISSIONING,DONCASTER AND BASSETLAW HOSPITALS NHS FOUNDATION TRUST,2772877,"635,517.00"
Department of Health,NHS Barnsley CCG,28/02/2014,C&M-PMS Cost of Drugs -Dispensing,LOCAL ENHANCED SERVICES,BARNSLEY GP PRACTICE,2737388,"158,912.36"
Department of Health,NHS Barnsley CCG,28/02/2014,C&M-PMS Cost of Drugs -Dispensing,LOCAL ENHANCED SERVICES,BARNSLEY GP PRACTICE,2737390,"30,326.23"
Department of Health,NHS Barnsley CCG,28/02/2014,C&M-GMS Cost of Drugs -Dispensing,LOCAL ENHANCED SERVICES,BARNSLEY GP PRACTICE,2737394,"31,075.02"
Department of Health,NHS Barnsley CCG,28/02/2014,Hcare Srv Rec NHS Trust-Contract Baseline,ACUTE COMMISSIONING,LEEDS TEACHING HOSPITALS NHS TRUST,2668327,"61,549.21"
Department of Health,NHS Barnsley CCG,28/02/2014,Hcare Srv Rec NHS Trust-Contract Baseline,ACUTE COMMISSIONING,MID YORKSHIRE HOSPITALS NHS TRUST,2582867,"(45,023.00)"
Department of Health,NHS Barnsley CCG,28/02/2014,Hcare Srv Rec NHS Trust-Contract Baseline,ACUTE COMMISSIONING,MID YORKSHIRE HOSPITALS NHS TRUST,2712613,"198,610.00"
Department of Health,NHS Barnsley CCG,28/02/2014,Clinical&Medical-Serv Recd-CCGs,PATIENT TRANSPORT,NHS SHEFFIELD CCG,2506894,"68,067.00"
Department of Health,NHS Barnsley CCG,28/02/2014,Charges from CSU,ADMINISTRATION & BUSINESS SUPPORT,NHS SOUTH YORKSHIRE AND BASSETLAW CSU,2457649,"247,689.03"
Department of Health,NHS Barnsley CCG,28/02/2014,Charges from CSU,CONTINUING HEALTHCARE ASSESSMENT & SUPPORT,NHS WEST YORKSHIRE CSU,2612808,"36,195.02"
Department of Health,NHS Barnsley CCG,28/02/2014,Charges from CSU,COMMISSIONING SCHEMES,NHS WEST YORKSHIRE CSU,2612808,"61,630.02"
Department of Health,NHS Barnsley CCG,28/02/2014,Charges from CSU,CORPORATE COSTS & SERVICES,NHS WEST YORKSHIRE CSU,2612808,"149,863.99"
Department of Health,NHS Barnsley CCG,28/02/2014,Clinical&Medical-Commercial Sector,ACUTE COMMISSIONING,ONEHEALTH GROUP,2712608,"80,606.00"
Department of Health,NHS Barnsley CCG,28/02/2014,Clinical&Medical-Commercial Sector,ACUTE COMMISSIONING,ONEHEALTH GROUP,2668458,"88,271.00"
Department of Health,NHS Barnsley CCG,28/02/2014,Hcare Srv Rec Fdtn Trust-Contract Baseline,MENTAL HEALTH CONTRACTS,ROTHERHAM DONCASTER & SOUTH HUMBER MENTAL HEALTH NHS FOUNDATION TRUST,2612828,"42,621.53"
Department of Health,NHS Barnsley CCG,28/02/2014,Hcare Srv Rec Fdtn Trust-Contract Baseline,COMMUNITY SERVICES,ROTHERHAM NHS FOUNDATION TRUST,2772885,"29,532.42"
Department of Health,NHS Barnsley CCG,28/02/2014,Hcare Srv Rec Fdtn Trust-Contract Baseline,ACUTE COMMISSIONING,ROTHERHAM NHS FOUNDATION TRUST,2712611,"157,259.79"
Department of Health,NHS Barnsley CCG,28/02/2014,Hcare Srv Rec Fdtn Trust-Contract Baseline,ACUTE COMMISSIONING,ROTHERHAM NHS FOUNDATION TRUST,2772899,"934,526.89"
Department of Health,NHS Barnsley CCG,28/02/2014,Hcare Srv Rec Fdtn Trust-Contract Baseline,ACUTE COMMISSIONING,SHEFFIELD CHILDRENS NHS FOUNDATION TRUST,2516970,"112,563.47"
Department of Health,NHS Barnsley CCG,28/02/2014,Hcare Srv Rec Fdtn Trust-Contract Baseline,ACUTE COMMISSIONING,SHEFFIELD CHILDRENS NHS FOUNDATION TRUST,2612927,"132,019.00"
Department of Health,NHS Barnsley CCG,28/02/2014,Hcare Srv Rec Fdtn Trust-Contract Baseline,MENTAL HEALTH CONTRACTS,SHEFFIELD HEALTH & SOCIAL CARE NHS FOUNDATION TRUST,2772850,"28,598.02"
Department of Health,NHS Barnsley CCG,28/02/2014,Hcare Srv Rec Fdtn Trust-Contract Baseline,ACUTE COMMISSIONING,SHEFFIELD TEACHING HOSPITALS NHS FOUNDATION TRUST,2566967,"47,948.00"
Department of Health,NHS Barnsley CCG,28/02/2014,Hcare Srv Rec Fdtn Trust-Contract Cost per Case,ACUTE COMMISSIONING,SHEFFIELD TEACHING HOSPITALS NHS FOUNDATION TRUST,2567260,"152,643.00"
Department of Health,NHS Barnsley CCG,28/02/2014,Hcare Srv Rec Fdtn Trust-Contract Baseline,ACUTE COMMISSIONING,SHEFFIELD TEACHING HOSPITALS NHS FOUNDATION TRUST,2566962,"1,765,299.00"
Department of Health,NHS Barnsley CCG,28/02/2014,Hcare Srv Rec Fdtn Trust-CQUIN,MENTAL HEALTH SERVICES - ADULTS,SOUTH WEST YORKSHIRE PARTNERSHIP NHS FOUNDATION TRUST,2516981,"27,127.00"
Department of Health,NHS Barnsley CCG,28/02/2014,Hcare Srv Rec Fdtn Trust-CQUIN,COMMUNITY SERVICES,SOUTH WEST YORKSHIRE PARTNERSHIP NHS FOUNDATION TRUST,2516981,"32,055.00"
Department of Health,NHS Barnsley CCG,28/02/2014,Hcare Srv Rec Fdtn Trust-CQUIN,COMMUNITY SERVICES,SOUTH WEST YORKSHIRE PARTNERSHIP NHS FOUNDATION TRUST,2772925,"133,175.00"
Department of Health,NHS Barnsley CCG,28/02/2014,Hcare Srv Rec Fdtn Trust-Contract Baseline,LEARNING DIFFICULTIES,SOUTH WEST YORKSHIRE PARTNERSHIP NHS FOUNDATION TRUST,2516981,"178,633.00"
Department of Health,NHS Barnsley CCG,28/02/2014,Hcare Srv Rec Fdtn Trust-Contract Baseline,COMMUNITY SERVICES,SOUTH WEST YORKSHIRE PARTNERSHIP NHS FOUNDATION TRUST,2712616,"461,204.00"
Department of Health,NHS Barnsley CCG,28/02/2014,Hcare Srv Rec Fdtn Trust-Contract Baseline,MENTAL HEALTH SERVICES - OLDER PEOPLE,SOUTH WEST YORKSHIRE PARTNERSHIP NHS FOUNDATION TRUST,2516981,"567,358.00"
Department of Health,NHS Barnsley CCG,28/02/2014,Hcare Srv Rec Fdtn Trust-Contract Baseline,MENTAL HEALTH SERVICES - ADULTS,SOUTH WEST YORKSHIRE PARTNERSHIP NHS FOUNDATION TRUST,2516981,"2,170,150.00"
Department of Health,NHS Barnsley CCG,28/02/2014,Hcare Srv Rec Fdtn Trust-Contract Baseline,COMMUNITY SERVICES,SOUTH WEST YORKSHIRE PARTNERSHIP NHS FOUNDATION TRUST,2516981,"2,564,394.00"
Department of Health,NHS Barnsley CCG,28/02/2014,Hcare Srv Rec NHS Trust-Contract Baseline,PATIENT TRANSPORT,YORKSHIRE AMBULANCE SERVICE NHS TRUST,2517000,"111,587.00"
Department of Health,NHS Barnsley CCG,28/02/2014,Hcare Srv Rec NHS Trust-Contract Baseline,AMBULANCE SERVICES,YORKSHIRE AMBULANCE SERVICE NHS TRUST,2517005,"535,932.00"
